fUSD/lending_fUSD_20250610
["ID","MTS","AMOUNT","RATE_DAILY","PERIOD"]
[365187946,1749525073701,-588.5523108,0.00017095,2]
[365187947,1749525073711,-490.0,0.00017095,2]
[365187948,1749525073720,-489.38723035,0.00017095,2]
[365187949,1749525073730,-490.0,0.00017095,2]
[365187950,1749525073740,-490.0,0.00017095,2]
[365187951,1749525073750,-614.43,0.00017095,2]
[365187952,1749525073762,-490.0,0.00017095,2]
[365187953,1749525073772,-490.0,0.00017095,2]
[365187954,1749525073782,-490.0,0.00017095,2]
[365187955,1749525073792,-490.0,0.00017095,2]
[365187956,1749525073803,-540.705362,0.00017095,2]
[365187957,1749525073813,-617.22525222,0.00017095,2]
[365187958,1749525073823,-490.0,0.00017095,2]
[365187959,1749525073834,-490.0,0.00017095,2]
[365187960,1749525073843,-490.0,0.00017095,2]
[365187961,1749525073854,-862.63,0.00017095,2]
[365187962,1749525073862,-389.08289394,0.00017095,2]
[365187963,1749525073871,-2092.76,0.00017095,2]
[365187964,1749525073882,-490.0,0.00017095,2]
[365187965,1749525073891,-490.0,0.00017095,2]
[365187966,1749525073902,-490.0,0.00017095,2]
[365187967,1749525073912,-490.0,0.00017095,2]
[365187968,1749525073924,-490.0,0.00017095,2]
[365187969,1749525073934,-490.0,0.00017095,2]
[365187970,1749525073944,-490.0,0.00017095,2]
[365187971,1749525073955,-485.1148713,0.00017095,2]
[365187972,1749525073965,-490.0,0.00017095,2]
[365187973,1749525073975,-490.0,0.00017095,2]
[365187974,1749525073984,-490.0,0.00017095,2]
[365187975,1749525073994,-490.0,0.00017095,2]
[365187976,1749525074003,-353.1767985,0.00017095,2]
[365187977,1749525074013,-597.22,0.00017095,2]
[365187978,1749525074023,-490.0,0.00017095,2]
[365187979,1749525074032,-490.0,0.00017095,2]
[365187980,1749525074042,-439.13230478,0.00017095,2]
[365187981,1749525074053,-490.0,0.00017095,2]
[365187982,1749525074063,-490.0,0.00017095,2]
[365187983,1749525074072,-490.0,0.00017095,2]
[365187984,1749525074081,-490.0,0.00017095,2]
[365187985,1749525074091,-490.0,0.00017095,2]
[365187986,1749525074100,-400.0,0.00017095,2]
[365187987,1749525074109,-490.0,0.00017095,2]
[365187988,1749525074118,-490.0,0.00017095,2]
[365187989,1749525074128,-564.73647959,0.00017095,2]
[365187990,1749525074138,-490.0,0.00017095,2]
[365187991,1749525074149,-472.07049688,0.00017095,2]
[365187992,1749525074161,-490.0,0.00017095,2]
[365187993,1749525074171,-490.0,0.00017095,2]
[365187994,1749525074183,-490.0,0.00017095,2]
[365187995,1749525074192,-490.0,0.00017095,2]
[365187996,1749525074203,-490.0,0.00017095,2]
[365187997,1749525074213,-534.03997063,0.00017095,2]
[365187998,1749525074226,-496.63,0.00017095,2]
[365187999,1749525074236,-490.0,0.00017095,2]
[365188000,1749525074246,-490.0,0.00017095,2]
[365188001,1749525074256,-490.0,0.00017095,2]
[365188002,1749525074266,-424.38341721,0.00017095,2]
[365188003,1749525074275,-483.71288545,0.00017095,2]
[365188004,1749525074284,-506.46978218,0.00017095,2]
[365188005,1749525074294,-490.0,0.00017095,2]
[365188006,1749525074303,-490.0,0.00017095,2]
[365188007,1749525074313,-490.0,0.00017095,2]
[365188008,1749525074322,-490.0,0.00017095,2]
[365188009,1749525074331,-296.27812312,0.00017095,2]
[365188010,1749525074342,-490.0,0.00017095,2]
[365188011,1749525074351,-490.0,0.00017095,2]
[365188012,1749525074361,-490.0,0.00017095,2]
[365188013,1749525074371,-490.0,0.00017095,2]
[365188014,1749525074381,-490.0,0.00017095,2]
[365188015,1749525074391,-490.0,0.00017095,2]
[365188016,1749525074401,-490.0,0.00017095,2]
[365188017,1749525074410,-565.28,0.00017095,2]
[365188018,1749525074420,-490.0,0.00017095,2]
[365188019,1749525074430,-522.01967362,0.00017095,2]
[365188020,1749525074440,-584.5458892,0.00017095,2]
[365188021,1749525074450,-490.0,0.00017095,2]
[365188022,1749525074460,-490.0,0.00017095,2]
[365188023,1749525074470,-490.0,0.00017095,2]
[365188024,1749525074479,-490.0,0.00017095,2]
[365188025,1749525074489,-490.0,0.00017095,2]
[365188026,1749525074499,-490.0,0.00017095,2]
[365188027,1749525074508,-490.0,0.00017095,2]
[365188028,1749525074518,-315.32658604,0.00017095,2]
[365188029,1749525074527,-558.54024451,0.00017095,2]
[365188030,1749525074537,-490.0,0.00017095,2]
[365188031,1749525074547,-490.0,0.00017095,2]
[365188032,1749525074557,-490.0,0.00017095,2]
[365188033,1749525074566,-490.0,0.00017095,2]
[365188034,1749525074576,-490.0,0.00017095,2]
[365188035,1749525074588,-487.42214193,0.00017095,2]
[365188036,1749525074597,-442.24199276,0.00017095,2]
[365188037,1749525074606,-490.0,0.00017095,2]
[365188038,1749525074615,-490.0,0.00017095,2]
[365188039,1749525074626,-490.0,0.00017095,2]
[365188040,1749525074637,-234.47920217,0.00017095,2]
[365188041,1749525074647,-352.54728954,0.00017095,2]
[365188042,1749525074658,-490.0,0.00017095,2]
[365188043,1749525074667,-537.96,0.00017095,2]
[365188044,1749525074677,-915.11,0.00017095,2]
[365188045,1749525074687,-490.0,0.00017095,2]
[365188046,1749525074696,-490.0,0.00017095,2]
[365188047,1749525074707,-490.0,0.00017095,2]
[365188048,1749525074716,-166.47074599,0.00017095,2]
[365188049,1749525074726,-490.0,0.00017095,2]
[365188050,1749525074735,-556.18,0.00017095,2]
[365188051,1749525074745,-623.81853377,0.00017095,2]
[365188052,1749525074754,-490.0,0.00017095,2]
[365188053,1749525074763,-490.0,0.00017095,2]
[365188054,1749525074773,-490.0,0.00017095,2]
[365188055,1749525074782,-490.0,0.00017095,2]
[365188056,1749525074792,-535.23,0.00017095,2]
[365188057,1749525074802,-247.31734912,0.00017095,2]
[365188058,1749525074811,-540.0,0.00017095,2]
[365188059,1749525074820,-490.0,0.00017095,2]
[365188060,1749525074830,-490.0,0.00017095,2]
[365188061,1749525074840,-3774.302836,0.00017095,2]
[365188062,1749525074849,-490.0,0.00017095,2]
[365188063,1749525074859,-490.0,0.00017095,2]
[365188064,1749525074869,-490.0,0.00017095,2]
[365188065,1749525074878,-2294.03,0.00017095,2]
[365188066,1749525075045,-722.61,0.00017095,2]
[365188067,1749525075077,-490.0,0.00017095,2]
[365188068,1749525075086,-490.0,0.00017095,2]
[365188069,1749525075095,-490.0,0.00017095,2]
[365188070,1749525075104,-490.0,0.00017095,2]
[365188071,1749525075113,-490.0,0.00017095,2]
[365188072,1749525075123,-490.0,0.00017095,2]
[365188073,1749525075132,-490.0,0.00017095,2]
[365188074,1749525075142,-757.61,0.00017095,2]
[365188075,1749525075151,-490.0,0.00017095,2]
[365188076,1749525075161,-216.72,0.00017095,2]
[365188077,1749525075170,-490.0,0.00017095,2]
[365188078,1749525075181,-490.0,0.00017095,2]
[365188079,1749525075191,-490.0,0.00017095,2]
[365188080,1749525075203,-490.0,0.00017095,2]
[365188081,1749525075214,-490.0,0.00017095,2]
[365188082,1749525075224,-490.0,0.00017095,2]
[365188083,1749525075233,-490.0,0.00017095,2]
[365188084,1749525075243,-1761.99,0.00017095,2]
[365188085,1749525075252,-498.01,0.00017095,2]
[365188086,1749525075261,-490.0,0.00017095,2]
[365188087,1749525075271,-403.95516636,0.00017095,2]
[365188088,1749525075280,-592.03731735,0.00017095,2]
[365188089,1749525075289,-626.78,0.00017095,2]
[365188090,1749525075298,-490.0,0.00017095,2]
[365188091,1749525075308,-2487.15,0.00017095,2]
[365188092,1749525075317,-490.0,0.00017095,2]
[365188093,1749525075326,-490.0,0.00017095,2]
[365188094,1749525075335,-490.0,0.00017095,2]
[365188095,1749525075345,-490.0,0.00017095,2]
[365188096,1749525075354,-490.0,0.00017095,2]
[365188097,1749525075363,-490.0,0.00017095,2]
[365188098,1749525075373,-490.0,0.00017095,2]
[365188099,1749525075383,-490.0,0.00017095,2]
[365188100,1749525075392,-606.53454561,0.00017095,2]
[365188101,1749525075402,-996.35,0.00017095,2]
[365188102,1749525075412,-490.0,0.00017095,2]
[365188103,1749525075421,-591.43,0.00017095,2]
[365188104,1749525075430,-490.0,0.00017095,2]
[365188105,1749525075440,-490.0,0.00017095,2]
[365188106,1749525075449,-553.91,0.00017095,2]
[365188107,1749525075459,-490.0,0.00017095,2]
[365188108,1749525075469,-563.80591845,0.00017095,2]
[365188109,1749525075479,-490.0,0.00017095,2]
[365188110,1749525075488,-490.0,0.00017095,2]
[365188111,1749525075498,-159.52,0.00017095,2]
[365188112,1749525075508,-490.0,0.00017095,2]
[365188113,1749525075517,-490.0,0.00017095,2]
[365188114,1749525075527,-490.0,0.00017095,2]
[365188115,1749525075536,-490.0,0.00017095,2]
[365188116,1749525075546,-490.0,0.00017095,2]
[365188117,1749525075555,-317.08037274,0.00017095,2]
[365188118,1749525075565,-490.0,0.00017095,2]
[365188119,1749525075575,-490.0,0.00017095,2]
[365188120,1749525075585,-673.4,0.00017095,2]
[365188121,1749525075597,-490.0,0.00017095,2]
[365188122,1749525075607,-490.0,0.00017095,2]
[365188123,1749525075617,-490.0,0.00017095,2]
[365188124,1749525075626,-470.34842378,0.00017095,2]
[365188125,1749525075637,-595.43,0.00017095,2]
[365188126,1749525075647,-437.67627619,0.00017095,2]
[365188127,1749525075656,-490.0,0.00017095,2]
[365188128,1749525075667,-490.0,0.00017095,2]
[365188129,1749525075676,-1580.0,0.00017095,2]
[365188130,1749525075686,-3953.88,0.00017095,2]
[365188131,1749525075696,-605.59,0.00017095,2]
[365188132,1749525075706,-490.0,0.00017095,2]
[365188133,1749525075717,-490.0,0.00017095,2]
[365188134,1749525075728,-490.0,0.00017095,2]
[365188135,1749525075737,-490.0,0.00017095,2]
[365188136,1749525075747,-490.0,0.00017095,2]
[365188137,1749525075758,-490.0,0.00017095,2]
[365188138,1749525075770,-490.0,0.00017095,2]
[365188139,1749525075780,-490.0,0.00017095,2]
[365188140,1749525075791,-490.0,0.00017095,2]
[365188141,1749525075802,-1687.14,0.00017095,2]
[365188142,1749525075811,-490.0,0.00017095,2]
[365188143,1749525075820,-490.0,0.00017095,2]
[365188144,1749525075830,-490.0,0.00017095,2]
[365188145,1749525075841,-490.0,0.00017095,2]
[365188146,1749525075851,-835.39,0.00017095,2]
[365188147,1749525075860,-490.0,0.00017095,2]
[365188148,1749525075870,-490.0,0.00017095,2]
[365188149,1749525075879,-440.0,0.00017095,2]
[365188150,1749525075889,-490.0,0.00017095,2]
[365188151,1749525075897,-490.0,0.00017095,2]
[365188152,1749525075907,-988.78,0.00017095,2]
[365188153,1749525075916,-509.02,0.00017095,2]
[365188154,1749525075926,-490.0,0.00017095,2]
[365188155,1749525075935,-490.0,0.00017095,2]
[365188156,1749525075945,-490.0,0.00017095,2]
[365188157,1749525075954,-490.0,0.00017095,2]
[365188158,1749525075963,-520.99,0.00017095,2]
[365188159,1749525075972,-490.0,0.00017095,2]
[365188160,1749525075981,-490.0,0.00017095,2]
[365188161,1749525075990,-490.0,0.00017095,2]
[365188162,1749525075999,-490.0,0.00017095,2]
[365188163,1749525076010,-490.0,0.00017095,2]
[365188164,1749525076018,-440.0,0.00017095,2]
[365188165,1749525076026,-490.0,0.00017095,2]
[365188166,1749525076034,-490.0,0.00017095,2]
[365188167,1749525076042,-490.0,0.00017095,2]
[365188168,1749525076050,-490.0,0.00017095,2]
[365188169,1749525076058,-490.0,0.00017095,2]
[365188170,1749525076067,-490.0,0.00017095,2]
[365188171,1749525076076,-874.46,0.00017095,2]
[365188172,1749525076086,-490.0,0.00017095,2]
[365188173,1749525076096,-490.0,0.00017095,2]
[365188174,1749525076106,-490.0,0.00017095,2]
[365188175,1749525076115,-1615.08,0.00017095,2]
[365188176,1749525076125,-490.0,0.00017095,2]
[365188177,1749525076134,-490.0,0.00017095,2]
[365188178,1749525076144,-490.0,0.00017095,2]
[365188179,1749525076153,-507.10473262,0.00017095,2]
[365188180,1749525076163,-529.84,0.00017095,2]
[365188181,1749525076172,-490.0,0.00017095,2]
[365188182,1749525076182,-1075.4,0.00017095,2]
[365188183,1749525076191,-655.8,0.00017095,2]
[365188184,1749525076201,-490.0,0.00017095,2]
[365188185,1749525076210,-553.14,0.00017095,2]
[365188186,1749525076220,-709.07,0.00017095,2]
[365188187,1749525076230,-1655.79,0.00017095,2]
[365188188,1749525076239,-490.0,0.00017095,2]
[365188189,1749525076249,-2379.12,0.00017095,2]
[365188190,1749525076259,-490.0,0.00017095,2]
[365188191,1749525076268,-462.67234244,0.00017095,2]
[365188192,1749525076277,-490.0,0.00017095,2]
[365188193,1749525076287,-637.09,0.00017095,2]
[365188194,1749525076296,-500.93450398,0.00017095,2]
[365188195,1749525076306,-1068.67,0.00017095,2]
[365188196,1749525076316,-490.0,0.00017095,2]
[365188197,1749525076326,-490.0,0.00017095,2]
[365188198,1749525076336,-490.0,0.00017095,2]
[365188199,1749525076346,-490.0,0.00017095,2]
[365188200,1749525076356,-490.0,0.00017095,2]
[365188201,1749525076366,-927.29,0.00017095,2]
[365188202,1749525076376,-490.0,0.00017095,2]
[365188203,1749525076387,-739.16,0.00017095,2]
[365188204,1749525076396,-848.47,0.00017095,2]
[365188205,1749525076406,-490.0,0.00017095,2]
[365188206,1749525076416,-490.0,0.00017095,2]
[365188207,1749525076426,-490.0,0.00017095,2]
[365188208,1749525076435,-490.0,0.00017095,2]
[365188209,1749525076445,-490.0,0.00017095,2]
[365188210,1749525076455,-490.0,0.00017095,2]
[365188211,1749525076464,-1641.81,0.00017095,2]
[365188212,1749525076473,-433.96863791,0.00017095,2]
[365188213,1749525076483,-2238.41,0.00017095,2]
[365188214,1749525076493,-490.0,0.00017095,2]
[365188215,1749525076503,-490.0,0.00017095,2]
[365188216,1749525076513,-490.0,0.00017095,2]
[365188217,1749525076522,-659.57,0.00017095,2]
[365188218,1749525076532,-490.0,0.00017095,2]
[365188219,1749525076541,-490.0,0.00017095,2]
[365188220,1749525076551,-1065.02,0.00017095,2]
[365188221,1749525076562,-1338.38,0.00017095,2]
[365188222,1749525076571,-490.0,0.00017095,2]
[365188223,1749525076581,-490.0,0.00017095,2]
[365188224,1749525076593,-490.0,0.00017095,2]
[365188225,1749525076603,-490.0,0.00017095,2]
[365188226,1749525076612,-490.0,0.00017095,2]
[365188227,1749525076622,-490.0,0.00017095,2]
[365188228,1749525076633,-490.0,0.00017095,2]
[365188229,1749525076643,-490.0,0.00017095,2]
[365188230,1749525076653,-490.0,0.00017095,2]
[365188231,1749525076664,-1000.0,0.00017095,2]
[365188232,1749525076674,-897.68,0.00017095,2]
[365188233,1749525076683,-490.0,0.00017095,2]
[365188234,1749525076694,-490.0,0.00017095,2]
[365188235,1749525076703,-517.29,0.00017095,2]
[365188236,1749525076713,-490.0,0.00017095,2]
[365188237,1749525076724,-639.59,0.00017095,2]
[365188238,1749525076734,-490.0,0.00017095,2]
[365188239,1749525076743,-490.0,0.00017095,2]
[365188240,1749525076754,-490.0,0.00017095,2]
[365188241,1749525076765,-490.0,0.00017095,2]
[365188242,1749525076775,-490.0,0.00017095,2]
[365188243,1749525076784,-490.0,0.00017095,2]
[365188244,1749525076794,-1634.79,0.00017095,2]
[365188245,1749525076804,-795.78,0.00017095,2]
[365188246,1749525076813,-490.0,0.00017095,2]
[365188247,1749525076823,-490.0,0.00017095,2]
[365188248,1749525076833,-490.0,0.00017095,2]
[365188249,1749525076843,-490.0,0.00017095,2]
[365188250,1749525076859,-499.37,0.00017095,2]
[365188251,1749525076868,-1983.09,0.00017095,2]
[365188252,1749525076878,-490.0,0.00017095,2]
[365188253,1749525076887,-490.0,0.00017095,2]
[365188254,1749525076896,-490.0,0.00017095,2]
[365188255,1749525076906,-1184.87,0.00017095,2]
[365188256,1749525076917,-490.0,0.00017095,2]
[365188257,1749525076927,-42056.12,0.00017095,2]
[365188258,1749525076938,-490.0,0.00017095,2]
[365188259,1749525076949,-490.0,0.00017095,2]
[365188260,1749525076960,-490.0,0.00017095,2]
[365188261,1749525076970,-490.0,0.00017095,2]
[365188262,1749525076980,-490.0,0.00017095,2]
[365188263,1749525076990,-490.0,0.00017095,2]
[365188264,1749525077000,-490.0,0.00017095,2]
[365188265,1749525077010,-490.0,0.00017095,2]
[365188266,1749525077019,-605.98,0.00017095,2]
[365188267,1749525077029,-491.03,0.00017095,2]
[365188268,1749525077039,-497.21,0.00017095,2]
[365188269,1749525077048,-611.73,0.00017095,2]
[365188270,1749525077058,-163.086026,0.00017095,2]
[365188271,1749525077067,-730.26,0.00017095,2]
[365188272,1749525077077,-1437.03,0.00017095,2]
[365188273,1749525077086,-490.0,0.00017095,2]
[365188274,1749525077096,-4445.982985,0.00017095,2]
[365188275,1749525077105,-490.0,0.00017095,2]
[365188276,1749525077115,-490.0,0.00017095,2]
[365188277,1749525077124,-490.0,0.00017095,2]
[365188278,1749525077133,-835.66,0.00017095,2]
[365188279,1749525077143,-500.0,0.00017099,2]
[365188280,1749525077155,-730.31,0.00017099,2]
[365188281,1749525077166,-500.0,0.00017099,2]
[365188282,1749525077176,-376.0,0.000171,2]
[365188283,1749525077185,-330.8494,0.000171,2]
[365188284,1749525077195,-768.0,0.000171,2]
[365188285,1749525077204,-384.9226,0.000171,2]
[365188286,1749525077214,-776.0,0.000171,2]
[365188287,1749525077223,-398.13896033,0.00017103,2]
[365188288,1749525077233,-5554.04029648,0.00017121,2]
[365188289,1749525077243,-2241.0,0.00017159,2]
[365188290,1749525077253,-173.35164408,0.00017206,2]
[365188291,1749525077263,-1000.0,0.00017221,2]
[365188292,1749525077272,-1000.0,0.00017221,2]
[365188293,1749525077287,-507.17260007,0.00017221,2]
[365188294,1749525077302,-1000.0,0.00017221,2]
[365188295,1749525077311,-1000.0,0.00017221,2]
[365188296,1749525077321,-1000.0,0.00017221,2]
[365188297,1749525077331,-159.72137022,0.00017229,2]
[365188298,1749525077341,-2241.0,0.00017251,2]
[365188299,1749525077351,-950.89,0.00017259,2]
[365188300,1749525077360,-664.92,0.00017259,2]
[365188301,1749525077370,-300.0,0.00017259,2]
[365188302,1749525077380,-490.0,0.0001726,2]
[365188303,1749525077389,-434.96623077,0.0001726,2]
[365188304,1749525077399,-490.0,0.0001726,2]
[365188305,1749525077409,-490.0,0.0001726,2]
[365188306,1749525077418,-598.50528208,0.0001726,2]
[365188307,1749525077428,-490.0,0.0001726,2]
[365188308,1749525077438,-490.0,0.0001726,2]
[365188309,1749525077447,-490.0,0.0001726,2]
[365188310,1749525077457,-623.08,0.0001726,2]
[365188311,1749525077467,-490.0,0.0001726,2]
[365188312,1749525077477,-473.97525836,0.0001726,2]
[365188313,1749525077487,-503.0,0.0001726,2]
[365188314,1749525077497,-706.89,0.0001726,2]
[365188315,1749525077506,-490.0,0.0001726,2]
[365188316,1749525077516,-490.0,0.0001726,2]
[365188317,1749525077526,-490.0,0.0001726,2]
[365188318,1749525077536,-665.87,0.0001726,2]
[365188319,1749525077545,-490.0,0.0001726,2]
[365188320,1749525077555,-490.0,0.0001726,2]
[365188321,1749525077565,-490.0,0.0001726,2]
[365188322,1749525077575,-504.72,0.0001726,2]
[365188323,1749525077584,-579.14,0.0001726,2]
[365188324,1749525077598,-266.17385145,0.0001726,2]
[365188325,1749525077608,-490.0,0.0001726,2]
[365188326,1749525077619,-490.0,0.0001726,2]
[365188327,1749525077629,-490.0,0.0001726,2]
[365188328,1749525077639,-504.42004254,0.0001726,2]
[365188329,1749525077650,-490.0,0.0001726,2]
[365188330,1749525077660,-490.0,0.0001726,2]
[365188331,1749525077671,-490.0,0.0001726,2]
[365188332,1749525077681,-665.32,0.0001726,2]
[365188333,1749525077690,-605.80564571,0.0001726,2]
[365188334,1749525077700,-490.0,0.0001726,2]
[365188335,1749525077710,-490.0,0.0001726,2]
[365188336,1749525077721,-490.0,0.0001726,2]
[365188337,1749525077740,-490.0,0.0001726,2]
[365188338,1749525077750,-490.0,0.0001726,2]
[365188339,1749525077760,-490.0,0.0001726,2]
[365188340,1749525077770,-443.28158326,0.0001726,2]
[365188341,1749525077779,-490.0,0.0001726,2]
[365188342,1749525077789,-490.0,0.0001726,2]
[365188343,1749525077799,-490.0,0.0001726,2]
[365188344,1749525077809,-490.0,0.0001726,2]
[365188345,1749525077818,-490.0,0.0001726,2]
[365188346,1749525077828,-239.35828238,0.0001726,2]
[365188347,1749525077838,-490.0,0.0001726,2]
[365188348,1749525077847,-490.0,0.0001726,2]
[365188349,1749525077856,-644.96,0.0001726,2]
[365188350,1749525077866,-490.0,0.0001726,2]
[365188351,1749525077875,-490.0,0.0001726,2]
[365188352,1749525077885,-474.23828818,0.0001726,2]
[365188353,1749525077894,-490.0,0.0001726,2]
[365188354,1749525077903,-470.39059269,0.0001726,2]
[365188355,1749525077913,-490.0,0.0001726,2]
[365188356,1749525077923,-614.43,0.0001726,2]
[365188357,1749525077933,-490.0,0.0001726,2]
[365188358,1749525077943,-490.0,0.0001726,2]
[365188359,1749525077952,-490.0,0.0001726,2]
[365188360,1749525077961,-301.87967606,0.0001726,2]
[365188361,1749525077971,-490.0,0.0001726,2]
[365188362,1749525077980,-490.0,0.0001726,2]
[365188363,1749525077990,-490.0,0.0001726,2]
[365188364,1749525077999,-862.63,0.0001726,2]
[365188365,1749525078009,-2092.76,0.0001726,2]
[365188366,1749525078019,-490.0,0.0001726,2]
[365188367,1749525078029,-420.0,0.0001726,2]
[365188368,1749525078038,-410.36527834,0.0001726,2]
[365188369,1749525078048,-490.0,0.0001726,2]
[365188370,1749525078059,-490.0,0.0001726,2]
[365188371,1749525078069,-490.0,0.0001726,2]
[365188372,1749525078079,-490.0,0.0001726,2]
[365188373,1749525078089,-490.0,0.0001726,2]
[365188374,1749525078099,-490.0,0.0001726,2]
[365188375,1749525078109,-490.0,0.0001726,2]
[365188376,1749525078119,-490.0,0.0001726,2]
[365188377,1749525078127,-597.22,0.0001726,2]
[365188378,1749525078136,-490.0,0.0001726,2]
[365188379,1749525078146,-564.89767145,0.0001726,2]
[365188380,1749525078156,-490.0,0.0001726,2]
[365188381,1749525078165,-490.0,0.0001726,2]
[365188382,1749525078176,-490.0,0.0001726,2]
[365188383,1749525078185,-490.0,0.0001726,2]
[365188384,1749525078195,-442.97307113,0.0001726,2]
[365188385,1749525078204,-490.0,0.0001726,2]
[365188386,1749525078213,-490.0,0.0001726,2]
[365188387,1749525078223,-490.0,0.0001726,2]
[365188388,1749525078232,-490.0,0.0001726,2]
[365188389,1749525078242,-490.0,0.0001726,2]
[365188390,1749525078251,-490.0,0.0001726,2]
[365188391,1749525078260,-490.0,0.0001726,2]
[365188392,1749525078271,-482.31830308,0.0001726,2]
[365188393,1749525078281,-496.63,0.0001726,2]
[365188394,1749525078290,-405.25255469,0.0001726,2]
[365188395,1749525078300,-490.0,0.0001726,2]
[365188396,1749525078310,-490.0,0.0001726,2]
[365188397,1749525078320,-490.0,0.0001726,2]
[365188398,1749525078331,-490.0,0.0001726,2]
[365188399,1749525078340,-444.88911093,0.0001726,2]
[365188400,1749525078349,-490.0,0.0001726,2]
[365188401,1749525078359,-490.0,0.0001726,2]
[365188402,1749525078369,-490.0,0.0001726,2]
[365188403,1749525078379,-490.0,0.0001726,2]
[365188404,1749525078389,-490.0,0.0001726,2]
[365188405,1749525078399,-490.0,0.0001726,2]
[365188406,1749525078409,-490.0,0.0001726,2]
[365188407,1749525078418,-267.50774429,0.0001726,2]
[365188408,1749525078427,-565.28,0.0001726,2]
[365188409,1749525078436,-490.0,0.0001726,2]
[365188410,1749525078446,-490.0,0.0001726,2]
[365188411,1749525078455,-292.71806667,0.0001726,2]
[365188412,1749525078466,-324.60464594,0.0001726,2]
[365188413,1749525078476,-490.0,0.0001726,2]
[365188414,1749525078487,-490.0,0.0001726,2]
[365188415,1749525078496,-410.0,0.0001726,2]
[365188416,1749525078506,-490.0,0.0001726,2]
[365188417,1749525078516,-179.82838274,0.0001726,2]
[365188418,1749525078528,-490.0,0.0001726,2]
[365188419,1749525078538,-490.0,0.0001726,2]
[365188420,1749525078550,-490.0,0.0001726,2]
[365188421,1749525078560,-490.0,0.0001726,2]
[365188422,1749525078570,-490.0,0.0001726,2]
[365188423,1749525078580,-490.0,0.0001726,2]
[365188424,1749525078591,-490.0,0.0001726,2]
[365188425,1749525078601,-537.96,0.0001726,2]
[365188426,1749525078612,-915.11,0.0001726,2]
[365188427,1749525078622,-490.0,0.0001726,2]
[365188428,1749525078632,-490.0,0.0001726,2]
[365188429,1749525078643,-490.0,0.0001726,2]
[365188430,1749525078652,-490.0,0.0001726,2]
[365188431,1749525078661,-556.18,0.0001726,2]
[365188432,1749525078672,-490.0,0.0001726,2]
[365188433,1749525078682,-525.96226203,0.0001726,2]
[365188434,1749525078692,-490.0,0.0001726,2]
[365188435,1749525078702,-490.0,0.0001726,2]
[365188436,1749525078928,-535.23,0.0001726,2]
[365188437,1749525078939,-490.0,0.0001726,2]
[365188438,1749525078949,-490.0,0.0001726,2]
[365188439,1749525078959,-3774.302836,0.0001726,2]
[365188440,1749525078969,-490.0,0.0001726,2]
[365188441,1749525078978,-490.0,0.0001726,2]
[365188442,1749525078988,-490.0,0.0001726,2]
[365188443,1749525078998,-2294.03,0.0001726,2]
[365188444,1749525079008,-722.61,0.0001726,2]
[365188445,1749525079018,-158.137852,0.0001726,2]